bitfinex-derivatives/quotes_BNBF0:USTF0_20250524
["timestamp","ask_amount","ask_price","bid_price","bid_amount"]
[1748063519112,0.73477942,668.63,667.56,1.288]
[1748063519311,0.43566033,668.62,667.56,1.288]
[1748063520314,0.43584352,668.61,667.56,1.288]
[1748063520514,0.43584352,668.6,667.56,1.288]
[1748063520711,0.43584352,668.59,667.56,1.288]
[1748063520908,0.43584352,668.58,667.56,1.288]
[1748063521108,0.43584352,668.57,667.56,1.288]
[1748063521312,0.43584352,668.56,667.56,1.288]
[1748063521512,0.43585052,668.55,667.56,1.288]
[1748063521713,0.43585052,668.54,667.56,1.288]
[1748063521912,0.43585052,668.53,667.56,1.288]
[1748063522114,0.43585052,668.52,667.56,1.288]
[1748063522311,0.43585052,668.51,667.56,1.288]
[1748063522510,0.43585052,668.5,667.56,1.288]
[1748063522714,0.43585052,668.49,667.56,1.288]
[1748063522911,0.43585052,668.48,667.56,1.288]
[1748063523112,0.43585052,668.47,667.56,1.288]
[1748063523313,0.43599739,668.46,667.56,1.288]
[1748063523511,0.43604974,668.45,667.56,2.929]
[1748063523716,0.43604974,668.44,667.56,2.929]
[1748063523913,0.43604974,668.43,667.56,2.929]
[1748063524216,0.43604974,668.42,667.56,2.929]
[1748063524518,0.43604974,668.41,667.56,2.929]
[1748063524717,0.43604974,668.4,667.56,2.929]
[1748063524913,0.43604974,668.39,667.56,2.929]
[1748063525118,0.43637972,668.38,667.56,2.929]
[1748063525315,0.43637972,668.37,667.56,2.929]
[1748063525517,0.43637972,668.36,667.56,2.929]
[1748063525720,0.43637972,668.35,667.56,2.929]
[1748063525916,0.43637972,668.34,667.56,2.929]
[1748063526116,0.43637972,668.33,667.56,2.929]
[1748063526420,0.43637972,668.32,667.56,2.929]
[1748063526619,0.43637972,668.31,667.56,2.929]
[1748063526819,0.43637972,668.3,667.56,2.929]
[1748063527022,0.43663247,668.29,667.56,2.929]
[1748063527317,0.43663247,668.28,667.56,2.929]
[1748063527523,0.43663247,668.27,667.56,2.929]
[1748063527724,0.43663247,668.26,667.56,2.929]
[1748063528021,0.43663247,668.25,667.56,2.929]
[1748063528222,0.43663247,668.24,667.56,2.929]
[1748063528422,0.43663247,668.23,667.56,2.929]
[1748063528624,0.43663247,668.22,667.56,2.929]
[1748063528825,0.43669655,668.21,667.56,2.929]
[1748063529123,0.43669655,668.2,667.56,2.929]
[1748063529322,0.43669655,668.19,667.56,2.929]
[1748063529522,0.43669655,668.18,667.56,2.929]
[1748063529720,0.43669655,668.17,667.56,2.929]
[1748063529924,1.48749039,668.36,667.56,2.929]
[1748063530125,0.43668877,668.35,667.56,2.929]
[1748063530326,0.43668877,668.34,667.56,2.929]
[1748063530525,0.43668877,668.33,667.56,2.929]
[1748063530825,0.43668877,668.32,667.56,2.929]
[1748063531026,0.43668877,668.31,667.56,2.929]
[1748063531325,0.43668877,668.3,667.56,2.929]
[1748063531520,0.43668877,668.29,667.56,2.929]
[1748063531825,1.48749039,668.35,667.56,2.929]
[1748063531826,0.43668877,668.28,667.56,2.929]
[1748063532021,0.43668877,668.27,667.56,2.929]
[1748063532221,0.43668877,668.26,667.56,2.929]
[1748063532423,0.29928918,668.25,667.56,2.929]
[1748063532623,0.43668877,668.24,667.56,2.929]
[1748063533727,1.48749039,668.22,667.56,2.929]
[1748063533927,0.73599587,668.21,667.56,2.929]
[1748063534127,0.73600035,668.2,667.56,2.929]
[1748063534328,0.73600483,668.19,667.56,2.929]
[1748063534629,0.73600931,668.18,667.56,2.929]
[1748063534829,0.73601379,668.17,667.56,2.929]
[1748063535029,0.43668877,668.16,667.56,2.929]
[1748063536030,0.43671221,668.15,667.56,2.929]
[1748063536230,1.48749039,668.13,667.56,2.929]
[1748063536427,0.43671221,668.12,667.56,2.929]
[1748063536732,0.43671221,668.11,667.56,2.929]
[1748063536927,0.43671221,668.1,667.56,2.929]
[1748063537128,0.43671221,668.09,667.56,2.929]
[1748063537423,0.43671221,668.08,667.56,2.929]
[1748063537731,0.43670894,668.07,667.56,2.929]
[1748063537930,0.43670894,668.06,667.56,2.929]
[1748063538130,0.43670894,668.05,667.56,2.929]
[1748063538327,0.43670894,668.04,667.56,2.929]
[1748063538527,0.43670894,668.03,667.56,2.929]
[1748063538731,0.43670894,668.02,667.56,2.929]
[1748063538933,0.43670894,668.01,667.56,2.929]
[1748063539130,0.43670894,668.0,667.56,2.929]
[1748063539328,0.43670894,667.99,667.56,2.929]
[1748063539534,0.43692507,667.98,667.56,4.55]
[1748063539732,0.43692507,667.97,667.56,4.55]
[1748063539933,0.43692507,667.96,667.56,4.55]
[1748063540232,0.43692507,667.95,667.56,4.55]
[1748063540432,0.43692507,667.94,667.56,4.55]
[1748063540631,0.43692507,667.93,667.56,4.55]
[1748063540832,0.43692507,667.92,667.56,4.55]
[1748063541029,0.43692507,667.91,667.56,4.55]
[1748063541230,0.43692507,667.9,667.56,4.55]
[1748063541530,1.48749039,668.07,667.56,4.55]
[1748063541730,0.43686693,668.06,667.56,4.55]
[1748063542034,0.43686693,668.05,667.56,4.55]
[1748063542230,0.43686693,668.04,667.56,4.55]
[1748063542534,0.43686693,668.03,667.56,4.55]
[1748063542830,0.43686693,668.02,667.56,4.55]
[1748063543030,0.43686693,668.01,667.56,4.55]
[1748063543234,0.43688189,668.0,667.56,4.55]
[1748063543435,0.43688189,667.99,667.56,4.55]
[1748063543634,0.43688189,667.98,667.56,4.55]
[1748063543834,0.43688189,667.97,667.56,4.55]
[1748063544035,0.43688189,667.96,667.56,4.55]
[1748063544235,0.43688189,667.95,667.56,4.55]
[1748063544437,0.43688189,667.94,667.56,4.55]
[1748063544737,0.43688189,667.93,667.56,4.55]
[1748063544937,0.43688189,667.92,667.56,4.55]
[1748063545138,0.43688189,667.91,667.56,4.55]
[1748063545433,0.43688189,667.9,667.56,4.55]
[1748063545633,1.48749039,668.04,667.56,4.55]
[1748063545834,0.43667821,668.03,667.56,4.55]
[1748063546034,0.43667821,668.02,667.56,4.55]
[1748063546233,0.43667821,668.01,667.56,4.55]
[1748063546537,0.43667821,668.0,667.56,4.55]
[1748063546733,0.43662066,667.99,667.56,4.55]
[1748063546935,1.48749039,668.04,667.56,4.55]
[1748063546936,0.43662066,667.98,667.56,4.55]
[1748063547139,0.43662066,667.97,667.56,4.55]
[1748063547433,0.43656091,667.96,667.56,4.55]
[1748063547638,0.43656091,667.95,667.56,4.55]
[1748063547837,0.43656091,667.94,667.56,4.55]
[1748063548033,0.43656091,667.93,667.56,4.55]
[1748063548334,0.43656091,667.92,667.56,4.55]
[1748063548532,0.43656091,667.91,667.56,4.55]
[1748063548736,1.48749039,668.05,667.56,4.55]
[1748063548737,0.43648819,667.9,667.56,4.55]
[1748063548938,1.48749039,668.05,667.56,4.55]
[1748063549135,0.43648809,668.04,667.56,4.55]
[1748063549335,0.43648809,668.03,667.56,4.55]
[1748063549540,0.43648809,668.02,667.56,4.55]
[1748063549739,0.43648809,668.01,667.56,4.55]
[1748063550038,0.43648809,668.0,667.56,4.55]
[1748063550233,0.43648809,667.99,667.56,4.55]
[1748063550440,0.43641684,667.98,667.56,4.55]
[1748063550641,0.43641684,667.97,667.56,4.55]
[1748063550841,0.43641684,667.96,667.56,4.55]
[1748063551141,0.43641684,667.95,667.56,4.55]
[1748063551338,0.43641684,667.94,667.56,4.55]
[1748063551542,0.43641684,667.93,667.56,4.55]
[1748063551743,0.43641684,667.92,667.56,4.55]
[1748063552040,0.29937878,668.05,667.56,4.55]
[1748063552239,0.43630702,668.04,667.56,4.55]
[1748063552443,0.43630702,668.03,667.56,4.55]
[1748063552642,0.43630702,668.02,667.56,4.55]
[1748063552841,0.43630702,668.01,667.56,4.55]
[1748063553039,0.29937878,668.05,667.56,4.55]
[1748063553040,0.43630702,668.0,667.56,4.55]
[1748063553240,0.43630702,667.99,667.56,4.55]
[1748063553441,0.43630702,667.98,667.56,4.55]
[1748063553745,0.43630702,667.97,667.56,4.55]
[1748063553944,0.4362343,667.96,667.56,4.55]
[1748063554141,0.4362343,667.95,667.56,4.55]
[1748063554341,0.4362343,667.94,667.56,4.55]
[1748063554645,0.4362343,667.93,667.56,4.55]
[1748063554845,0.4362343,667.92,667.56,4.55]
[1748063555041,0.29937878,668.05,667.56,4.55]
[1748063555246,0.43621171,668.04,667.56,4.55]
[1748063555440,0.43621171,668.03,667.56,4.55]
[1748063555645,0.43621171,668.02,667.56,4.55]
[1748063555941,0.43621171,668.01,667.56,4.55]
[1748063556142,0.43621171,668.0,667.56,4.55]
[1748063556447,0.43621171,667.99,667.56,4.55]
[1748063556643,0.43621171,667.98,667.56,4.55]
[1748063556846,0.43621171,667.97,667.56,4.55]
[1748063557042,0.43621171,667.96,667.56,4.55]
[1748063557246,0.43621171,667.95,667.56,4.55]
[1748063557446,0.43621171,667.94,667.56,4.55]
[1748063557647,0.43619118,667.93,667.56,4.55]
[1748063557841,0.43619118,667.92,667.56,4.55]
[1748063558044,0.29937878,668.05,667.56,4.55]
[1748063558240,0.43617081,668.04,667.56,4.55]
[1748063558445,0.43617081,668.03,667.56,4.55]
[1748063558646,0.43617081,668.02,667.56,4.55]
[1748063558945,0.43617081,668.01,667.56,4.55]
[1748063559248,0.43617081,668.0,667.56,4.55]
[1748063559547,0.43617081,667.99,667.56,4.55]
[1748063559749,0.43617081,667.98,667.56,4.55]
[1748063559949,0.43617081,667.97,667.56,4.55]
[1748063560150,0.43617081,667.96,667.56,4.55]
[1748063560448,0.43617081,667.95,667.56,4.55]
[1748063560646,0.43617081,667.94,667.56,4.55]
[1748063560844,0.43617081,667.93,667.56,4.55]
[1748063561044,0.29937878,668.05,667.56,4.55]
[1748063561245,0.4355863,668.04,667.56,4.55]
[1748063561448,0.4355863,668.03,667.56,4.55]
[1748063561647,0.4355863,668.02,667.56,4.55]
[1748063561949,0.4355863,668.01,667.56,4.55]
[1748063562150,0.4355863,668.0,667.56,4.55]
[1748063562349,0.4355863,667.99,667.56,4.55]
[1748063562550,0.4355863,667.98,667.56,4.55]
[1748063562846,0.4355863,667.97,667.56,4.55]
[1748063563051,0.43561986,667.96,667.56,4.55]
[1748063563249,0.43561986,667.95,667.56,4.55]
[1748063563550,0.43561986,667.94,667.56,4.55]
[1748063563849,0.43561986,667.93,667.56,4.55]
[1748063564043,0.29937878,668.05,667.56,4.55]
[1748063564248,0.43564529,668.04,667.56,4.55]
[1748063564448,0.43564529,668.03,667.56,4.55]
[1748063564645,0.43564529,668.02,667.56,4.55]
[1748063564949,0.43564529,668.01,667.56,4.55]
[1748063565147,0.43564529,668.0,667.56,4.55]
[1748063565346,0.43564529,667.99,667.56,4.55]
[1748063565546,0.43564529,667.98,667.56,4.55]
[1748063565845,0.43564529,667.97,667.56,4.55]
[1748063566049,0.43564529,667.96,667.56,4.55]
[1748063566249,0.43564529,667.95,667.56,4.55]
[1748063566447,0.43564529,667.94,667.56,4.55]
[1748063566648,0.43564529,667.93,667.56,4.55]
[1748063566853,0.43564529,667.92,667.56,4.55]
[1748063567153,0.29937878,668.05,667.56,4.55]
[1748063567351,0.43576763,668.04,667.56,4.55]
[1748063567552,0.43576763,668.03,667.56,4.55]
[1748063567752,0.43576763,668.02,667.56,4.55]
[1748063567952,0.43576763,668.01,667.56,4.55]
[1748063568154,0.43576763,668.0,667.56,4.55]
[1748063568354,0.43576763,667.99,667.56,4.55]
[1748063568652,0.29937878,668.05,667.56,4.55]
[1748063568653,0.43576763,667.98,667.56,4.55]
[1748063568849,0.43576763,667.97,667.56,4.55]
[1748063569048,0.43576763,667.96,667.56,4.55]
[1748063569250,0.43576763,667.95,667.56,4.55]
[1748063569452,0.43576763,667.94,667.56,4.55]
[1748063569657,0.43576763,667.93,667.56,4.55]
[1748063569858,0.43576763,667.92,667.56,4.55]
[1748063570057,0.43576763,667.91,667.56,4.55]
[1748063570257,0.29937878,668.05,667.56,4.55]
[1748063570553,0.43596805,668.04,667.56,4.55]
[1748063570757,0.43596805,668.03,667.56,4.55]
[1748063570956,0.43596805,668.02,667.56,4.55]
[1748063571157,0.43596805,668.01,667.56,4.55]
[1748063571359,0.43596805,668.0,667.56,4.55]
[1748063571658,0.43596805,667.99,667.56,4.55]
[1748063571858,0.43596805,667.98,667.56,4.55]
[1748063572058,0.43614712,667.97,667.56,4.55]
[1748063572258,0.43614712,667.96,667.56,4.55]
[1748063572458,0.43614712,667.95,667.56,4.55]
[1748063572656,0.43614712,667.94,667.56,4.55]
[1748063572854,0.29937878,668.05,667.56,4.55]
[1748063574056,1.48749039,668.04,667.56,4.55]
[1748063576765,0.29937878,668.05,667.56,4.55]
[1748063585365,1.11634992,667.99,667.56,4.55]
[1748063587463,1.11634992,667.94,667.56,4.55]
[1748063590971,1.11634992,667.93,667.56,4.55]
[1748063593075,0.44047744,667.92,667.56,4.55]
[1748063593366,0.44049611,667.91,667.56,4.55]
[1748063593569,1.11634992,667.89,667.56,4.55]
[1748063593770,0.44049611,667.88,667.56,4.55]
[1748063593965,0.44049611,667.87,667.56,4.55]
[1748063594169,1.11634992,667.89,667.56,4.55]
[1748063594366,0.44049147,667.88,667.56,4.55]
[1748063594570,0.44049147,667.87,667.56,4.55]
[1748063594767,1.11634992,667.89,667.56,4.55]
[1748063595172,1.11634992,667.86,667.56,4.55]
[1748063596673,0.44049594,667.85,667.56,4.55]
[1748063596873,1.11634992,667.86,667.56,4.55]
[1748063597074,0.44049579,667.85,667.56,4.55]
[1748063597268,1.11634992,667.86,667.56,4.55]
[1748063597469,0.44051628,667.85,667.56,4.55]
[1748063597674,1.11634992,667.86,667.56,4.55]
[1748063597874,0.44050036,667.85,667.56,4.55]
[1748063598069,0.44050036,667.84,667.56,4.55]
[1748063598275,1.11634992,667.91,667.56,4.55]
[1748063598476,0.44052024,667.9,667.56,4.55]
[1748063598675,0.44052024,667.89,667.56,4.55]
[1748063598876,0.44052024,667.88,667.56,4.55]
[1748063599176,0.44052024,667.87,667.56,4.55]
[1748063599372,0.44052024,667.86,667.56,4.55]
[1748063599579,0.44052024,667.85,667.56,4.55]
[1748063599877,0.44052024,667.84,667.56,4.55]
[1748063600073,0.44050933,667.83,667.56,4.55]
[1748063600273,1.11634992,667.91,667.56,4.55]
[1748063600478,0.4405094,667.9,667.56,4.55]
[1748063600678,1.11634992,667.91,667.56,4.55]
[1748063600679,0.4405094,667.89,667.56,4.55]
[1748063600979,0.4405094,667.88,667.56,4.55]
[1748063601278,0.4405094,667.87,667.56,4.55]
[1748063601479,0.4405094,667.86,667.56,4.55]
[1748063601681,0.4405094,667.85,667.56,4.55]
[1748063601880,0.4405094,667.84,667.56,4.55]
[1748063602076,1.11634992,667.91,667.56,4.55]
[1748063602275,0.44052069,667.9,667.56,4.55]
[1748063602479,0.44052069,667.89,667.56,4.55]
[1748063602675,0.44052069,667.88,667.56,4.55]
[1748063602975,0.44052069,667.87,667.56,4.55]
[1748063603175,0.44052069,667.86,667.56,4.55]
[1748063603475,0.44052069,667.85,667.56,4.55]
[1748063603675,0.44052069,667.84,667.56,4.55]
[1748063603875,0.44052069,667.83,667.56,4.55]
[1748063604080,1.11634992,667.91,667.56,4.55]
[1748063604379,0.44054496,667.9,667.56,4.55]
[1748063604575,0.44054496,667.89,667.56,4.55]
[1748063604779,0.44054496,667.88,667.56,4.55]
[1748063604979,0.44054496,667.87,667.56,4.55]
[1748063605173,0.44054496,667.86,667.56,4.55]
[1748063605378,0.44054496,667.85,667.56,4.55]
[1748063605580,0.44054496,667.84,667.56,4.55]
[1748063605879,0.44054496,667.83,667.56,4.55]
[1748063606080,1.11634992,667.91,667.56,4.55]
[1748063606280,0.44056576,667.9,667.56,4.55]
[1748063606481,0.44056576,667.89,667.56,4.55]
[1748063606677,0.44056576,667.88,667.56,4.55]
[1748063606874,0.44056576,667.87,667.56,4.55]
[1748063607080,0.44056576,667.86,667.56,4.55]
[1748063607378,0.44056576,667.85,667.56,4.55]
[1748063607574,1.11634992,667.83,667.56,4.55]
[1748063612387,1.11634992,667.82,667.56,4.55]
[1748063614291,1.11634992,667.79,667.56,4.55]
[1748063617887,1.11634992,667.9,667.56,4.55]
[1748063618091,0.44074974,667.89,667.56,4.55]
[1748063618293,0.44074974,667.88,667.56,4.55]
[1748063618493,0.44074974,667.87,667.56,4.55]
[1748063618694,0.44074974,667.86,667.56,4.55]
[1748063618992,0.44074974,667.85,667.56,4.55]
[1748063619287,0.44074974,667.84,667.56,4.55]
[1748063619493,0.44074974,667.83,667.56,4.55]
[1748063619793,0.44074974,667.82,667.56,4.55]
[1748063619994,1.11634992,667.9,667.56,4.55]
[1748063620296,0.44079211,667.89,667.56,4.55]
[1748063620494,0.44079211,667.88,667.56,4.55]
[1748063620698,0.44079211,667.87,667.56,4.55]
[1748063620892,0.44079211,667.86,667.56,4.55]
[1748063621093,0.44079211,667.85,667.56,4.55]
[1748063621294,0.44079211,667.84,667.56,4.55]
[1748063621491,0.44079211,667.83,667.56,4.55]
[1748063621789,0.44079211,667.82,667.56,4.55]
[1748063621993,0.44079211,667.81,667.56,4.55]
[1748063622191,1.11634992,667.89,667.56,4.55]
[1748063622396,0.44083902,667.88,667.56,4.55]
[1748063622596,0.44083902,667.87,667.56,4.55]
[1748063622796,0.44083902,667.86,667.56,4.55]
[1748063623097,0.44083902,667.85,667.56,4.55]
[1748063623395,0.44083902,667.84,667.56,4.55]
[1748063623591,0.44083902,667.83,667.56,4.55]
[1748063623793,0.44088351,667.82,667.56,4.55]
[1748063623991,1.11634992,667.89,667.56,4.55]
[1748063624294,0.44088234,667.88,667.56,4.55]
[1748063624494,0.44088234,667.87,667.56,4.55]
[1748063624694,1.11634992,667.82,667.56,4.55]
[1748063625292,0.44092271,667.81,667.56,4.55]
[1748063625497,1.11634992,667.82,667.56,4.55]
[1748063625697,0.44093436,667.81,667.56,4.55]
[1748063625898,1.11634992,667.82,667.56,4.55]
[1748063626101,0.44093436,667.81,667.56,4.55]
[1748063626293,1.11634992,667.82,667.56,4.55]
[1748063626497,0.44094871,667.81,667.56,4.55]
[1748063626699,1.11634992,667.82,667.56,4.55]
[1748063626894,0.44096298,667.81,667.56,4.55]
[1748063627200,1.11634992,667.79,667.56,4.55]
[1748063630103,0.29937878,668.05,667.56,4.55]
[1748063630104,1.11634992,667.78,667.56,4.55]
[1748063632106,1.11634992,667.77,667.56,4.55]
[1748063634407,1.11634992,667.74,667.56,4.55]
[1748063641811,1.11634992,667.73,667.56,4.55]
[1748063644520,1.11634992,667.72,667.56,4.55]
[1748063644811,1.11634992,667.72,667.19,1.1123956]
[1748063647219,1.11634992,667.72,667.2,1.434]
[1748063647513,1.11634992,667.68,667.22,1.1123956]
[1748063648018,1.11634992,667.68,667.23,1.439]
[1748063648619,1.11634992,667.68,667.24,1.606]
[1748063650422,1.11634992,667.68,667.28,1.1123956]
[1748063650620,1.11634992,667.71,667.28,1.1123956]
[1748063653523,1.11634992,667.76,667.24,1.606]
[1748063653823,0.44251558,667.75,667.24,1.606]
[1748063654018,1.11634992,667.76,667.24,1.606]
[1748063654217,0.44250059,667.75,667.24,1.606]
[1748063654422,1.11634992,667.76,667.24,1.606]
[1748063654622,0.44250216,667.75,667.24,1.606]
[1748063654923,1.11634992,667.76,667.24,1.606]
[1748063655122,0.44249946,667.75,667.24,1.606]
[1748063655318,1.11634992,667.76,667.24,1.606]
[1748063655517,0.44249695,667.75,667.24,1.606]
[1748063655717,1.11634992,667.76,667.24,1.606]
[1748063655921,0.44249698,667.75,667.24,1.606]
[1748063656124,1.11634992,667.77,667.24,1.606]
[1748063656318,0.44248481,667.76,667.24,1.606]
[1748063656518,0.44248481,667.75,667.24,1.606]
[1748063656822,1.11634992,667.77,667.24,1.606]
[1748063657023,0.44249595,667.76,667.24,1.606]
[1748063657223,0.44249595,667.75,667.24,1.606]
[1748063657423,1.11634992,667.77,667.24,1.606]
[1748063657623,0.44247606,667.76,667.24,1.606]
[1748063657823,1.11634992,667.77,667.24,1.606]
[1748063657824,0.44247606,667.75,667.24,1.606]
[1748063658025,1.11634992,667.77,667.24,1.606]
[1748063658226,0.44236335,667.76,667.24,1.606]
[1748063658422,0.44236335,667.75,667.24,1.606]
[1748063658725,1.11634992,667.76,667.24,1.606]
[1748063660530,1.11634992,667.77,667.24,1.606]
[1748063660725,0.44232252,667.76,667.24,1.606]
[1748063660927,1.11634992,667.77,667.24,1.606]
[1748063661225,0.44231006,667.76,667.24,1.606]
[1748063661425,1.11634992,667.77,667.24,1.606]
[1748063661626,0.44230944,667.76,667.24,1.606]
[1748063661827,1.11634992,667.77,667.24,1.606]
[1748063662024,0.4423149,667.76,667.24,1.606]
[1748063662225,1.11634992,667.77,667.24,1.606]
[1748063662425,0.44230842,667.76,667.24,1.606]
[1748063662627,0.44230842,667.75,667.24,1.606]
[1748063662828,1.11634992,667.77,667.24,1.606]
[1748063663429,1.11634992,667.74,667.24,2.7183956]
[1748063666835,1.11634992,667.84,667.3,1.1123956]
[1748063669233,1.11634992,667.85,667.29,1.1123956]
[1748063671640,1.11634992,667.85,667.3,1.092]
[1748063672136,1.11634992,667.83,667.3,1.092]
[1748063672341,1.11634992,667.83,667.32,1.1123956]
[1748063675343,1.11634992,667.94,667.37,1.1123956]
[1748063677543,1.11634992,667.94,667.35,1.1123956]
[1748063680245,1.11634992,667.91,667.37,1.1123956]
[1748063683150,1.11634992,667.95,667.32,1.1123956]
[1748063685251,1.11634992,667.96,667.32,1.1123956]
[1748063687354,1.11634992,667.97,667.29,1.1123956]
[1748063687553,1.11634992,667.97,667.33,1.134]
[1748063688855,1.11634992,667.99,667.33,1.134]
[1748063691463,0.29937878,668.05,667.33,1.134]
[1748063691464,1.11634992,668.0,667.33,1.134]
[1748063693666,1.11634992,667.99,667.33,1.134]
[1748063698569,1.11634992,667.96,667.33,2.2463956]
[1748063700265,1.11634992,667.96,667.34,1.16]
[1748063701274,0.26052584,668.52,667.41,1.1123956]
[1748063701275,1.11634992,668.06,667.41,1.1123956]
[1748063704176,1.11634992,668.1,667.39,1.1123956]
[1748063704978,1.11634992,668.1,667.4,1.62]
[1748063708879,0.44085852,668.09,667.4,1.62]
[1748063709074,0.44085852,668.08,667.4,1.62]
[1748063709274,1.11634992,668.1,667.4,1.62]
[1748063709275,0.44085852,668.07,667.4,1.62]
[1748063709474,0.26050049,668.56,667.4,1.62]
[1748063709475,1.11634992,668.02,667.4,1.62]
[1748063709678,0.44092694,668.01,667.4,1.62]
[1748063709872,1.11634992,668.02,667.4,1.62]
[1748063710078,0.44092808,668.01,667.4,1.62]
[1748063710280,1.11634992,668.02,667.4,1.62]
[1748063710475,0.44094393,668.01,667.4,1.62]
[1748063710680,1.11634992,668.02,667.4,1.62]
[1748063710881,0.44095604,668.01,667.4,1.62]
[1748063711082,1.11634992,668.02,667.4,1.62]
[1748063711282,0.44096962,668.01,667.4,1.62]
[1748063711481,1.11634992,668.02,667.4,1.62]
[1748063711678,0.44096962,668.01,667.4,1.62]
[1748063711977,0.44096962,668.0,667.4,1.62]
[1748063712179,1.11634992,668.01,667.4,1.62]
[1748063712384,0.44100428,668.0,667.4,1.62]
[1748063712683,1.11634992,668.01,667.4,1.62]
[1748063712879,0.44101616,668.0,667.4,1.62]
[1748063713082,1.11634992,668.01,667.4,1.62]
[1748063713278,0.4409913,668.0,667.4,1.62]
[1748063713480,1.11634992,668.01,667.4,1.62]
[1748063713678,0.441003,668.0,667.4,1.62]
[1748063713878,1.11634992,668.01,667.4,1.62]
[1748063714083,0.44100205,668.0,667.4,1.62]
[1748063714378,1.11634992,668.01,667.4,1.62]
[1748063714584,0.44102718,668.0,667.4,1.62]
[1748063714878,1.11634992,668.01,667.4,1.62]
[1748063715083,0.44104014,668.0,667.4,1.62]
[1748063715278,0.44104014,667.99,667.4,1.62]
[1748063715482,1.55739006,667.98,667.4,1.62]
[1748063715778,0.44104014,667.97,667.4,1.62]
[1748063718385,1.11634992,667.94,667.4,1.62]
[1748063718581,0.44104014,667.93,667.4,1.62]
[1748063720085,0.44104014,667.93,667.41,1.425]
[1748063720979,0.44104014,667.93,667.42,1.696]
[1748063722784,1.11634992,667.9,667.42,1.696]
[1748063725286,1.11634992,668.01,667.42,1.696]
[1748063725486,0.44151531,668.0,667.42,1.696]
[1748063725785,0.44152992,667.99,667.42,1.696]
[1748063725985,0.44152992,667.98,667.42,1.696]
[1748063726185,1.11634992,668.01,667.42,1.696]
[1748063726186,0.44152992,667.97,667.42,1.696]
[1748063726384,0.44152992,667.96,667.42,1.696]
[1748063726585,0.44152992,667.95,667.42,1.696]
[1748063726885,0.44152992,667.94,667.42,1.696]
[1748063727082,0.44155766,667.93,667.42,1.696]
[1748063727281,1.11634992,668.01,667.42,1.696]
[1748063727482,0.44156099,668.0,667.42,1.696]
[1748063727783,0.44156099,667.99,667.42,1.696]
[1748063727981,0.44156099,667.98,667.42,1.696]
[1748063728187,0.44156099,667.97,667.42,1.696]
[1748063728486,0.44156099,667.96,667.42,1.696]
[1748063728686,0.44156099,667.95,667.42,1.696]
[1748063728885,0.44156099,667.94,667.42,1.696]
[1748063729087,0.44156099,667.93,667.42,1.696]
[1748063729282,1.11634992,668.01,667.42,1.696]
[1748063729587,0.44159993,668.0,667.42,1.696]
[1748063729787,0.44159993,667.99,667.42,1.696]
[1748063729988,0.44159993,667.98,667.42,1.696]
[1748063730182,1.11634992,668.0,667.42,1.696]
[1748063730183,0.44159993,667.97,667.42,1.696]
[1748063730383,0.44159993,667.96,667.42,1.696]
[1748063730587,0.44159993,667.95,667.42,1.696]
[1748063730880,0.44159993,667.94,667.42,1.696]
[1748063731084,0.44164414,667.93,667.42,1.696]
[1748063731289,0.44164414,667.92,667.42,1.696]
[1748063731588,0.44164414,667.91,667.42,1.696]
[1748063731888,0.44164414,667.9,667.42,1.696]
[1748063732090,1.55799406,667.89,667.41,1.425]
[1748063732284,0.44164414,667.88,667.41,1.425]
[1748063732483,0.44164414,667.87,667.41,1.425]
[1748063732790,1.11634992,667.89,667.41,1.425]